fUST/lending_fUST_20260612
["ID","MTS","AMOUNT","RATE_DAILY","PERIOD"]
[424880078,1781231443000,-3868.0,0.0003589,18]
[424880071,1781231443000,-500.0,0.0003589,18]
[424880080,1781231443000,-500.0,0.0003589,18]
[424880069,1781231443000,-500.0,0.0003589,18]
[424880082,1781231443000,-885.32,0.0003589,18]
[424880084,1781231443000,-4870.13,0.0003589,18]
[424880073,1781231443000,-5137.44,0.0003589,18]
[424880086,1781231443000,-571.5790887,0.0003589,18]
[424879977,1781231443000,-151.0,0.0003589,7]
[424880088,1781231443000,-1194.23,0.0003589,18]
[424880092,1781231443000,-500.0,0.0003589,18]
[424880063,1781231443000,-500.0,0.0003589,18]
[424880034,1781231443000,-500.0,0.0003589,18]
[424880090,1781231443000,-687.74,0.0003589,18]
[424880030,1781231443000,-500.0,0.0003589,18]
[424880032,1781231443000,-500.0,0.0003589,18]
[424879967,1781231443000,-151.0,0.0003589,7]
[424879979,1781231443000,-165.8688,0.0003589,2]
[424879981,1781231443000,-151.0,0.0003589,7]
[424879985,1781231443000,-151.0,0.0003589,7]
[424879983,1781231443000,-165.8688,0.0003589,2]
[424879987,1781231443000,-165.868802,0.0003589,2]
[424879996,1781231443000,-500.0,0.0003589,18]
[424879998,1781231443000,-500.0,0.0003589,18]
[424879989,1781231443000,-151.0,0.0003589,7]
[424880000,1781231443000,-5444.48,0.0003589,18]
[424879993,1781231443000,-151.0,0.0003589,7]
[424879994,1781231443000,-500.0,0.0003589,18]
[424880001,1781231443000,-500.0,0.0003589,18]
[424879991,1781231443000,-151.0,0.0003589,7]
[424879970,1781231443000,-151.0,0.0003589,7]
[424880005,1781231443000,-500.0,0.0003589,2]
[424880003,1781231443000,-2203.78,0.0003589,18]
[424880028,1781231443000,-500.0,0.0003589,18]
[424880025,1781231443000,-500.0,0.0003589,18]
[424880019,1781231443000,-500.0,0.0003589,18]
[424880018,1781231443000,-500.0,0.0003589,18]
[424880016,1781231443000,-151.0,0.0003589,7]
[424880021,1781231443000,-4131.71,0.0003589,18]
[424880027,1781231443000,-1045.9,0.0003589,18]
[424880012,1781231443000,-151.0,0.0003589,7]
[424880014,1781231443000,-2485.13,0.0003589,18]
[424880011,1781231443000,-151.0,0.0003589,7]
[424880009,1781231443000,-500.0,0.0003589,18]
[424880023,1781231443000,-500.0,0.0003589,18]
[424880007,1781231443000,-1138.31,0.0003589,18]
[424880187,1781231444000,-500.0,0.00036164,18]
[424880177,1781231444000,-500.0,0.0003589,18]
[424880183,1781231444000,-1090.6352,0.00036164,18]
[424880161,1781231444000,-500.0,0.0003589,18]
[424880185,1781231444000,-500.0,0.00036164,18]
[424880179,1781231444000,-285.249341,0.00035978,120]
[424880169,1781231444000,-500.0,0.0003589,18]
[424880181,1781231444000,-656.75496478,0.00036061,2]
[424880165,1781231444000,-500.0,0.0003589,18]
[424880159,1781231444000,-294.62725208,0.0003589,18]
[424880189,1781231444000,-500.0,0.00036164,18]
[424880167,1781231444000,-500.0,0.0003589,18]
[424880158,1781231444000,-6410.85,0.0003589,18]
[424880201,1781231444000,-500.0,0.00036164,18]
[424880197,1781231444000,-732.82,0.00036164,18]
[424880193,1781231444000,-500.0,0.00036164,18]
[424880199,1781231444000,-678.69,0.00036164,18]
[424880196,1781231444000,-270.02485258,0.00036164,18]
[424880191,1781231444000,-558.13,0.00036164,18]
[424880207,1781231444000,-500.0,0.00036164,18]
[424880205,1781231444000,-500.0,0.00036164,18]
[424880209,1781231444000,-333.16329811,0.00036164,18]
[424880212,1781231444000,-500.0,0.00036164,18]
[424880210,1781231444000,-807.9,0.00036164,18]
[424880214,1781231444000,-500.0,0.00036164,18]
[424880224,1781231444000,-500.0,0.00036164,18]
[424880148,1781231444000,-4780.510227,0.0003589,7]
[424880216,1781231444000,-500.0,0.00036164,18]
[424880203,1781231444000,-500.0,0.00036164,18]
[424880152,1781231444000,-500.0,0.0003589,18]
[424880132,1781231444000,-4780.510235,0.0003589,7]
[424880154,1781231444000,-6094.36,0.0003589,18]
[424880225,1781231444000,-1111.26,0.00036164,18]
[424880098,1781231444000,-517.83,0.0003589,18]
[424880107,1781231444000,-1708.55,0.0003589,18]
[424880101,1781231444000,-500.0,0.0003589,18]
[424880103,1781231444000,-500.0,0.0003589,18]
[424880096,1781231444000,-2933.19,0.0003589,11]
[424880105,1781231444000,-500.0,0.0003589,2]
[424880109,1781231444000,-1342.78,0.0003589,18]
[424880110,1781231444000,-644.78,0.0003589,18]
[424880124,1781231444000,-4780.510235,0.0003589,7]
[424880126,1781231444000,-3338.79,0.0003589,18]
[424880112,1781231444000,-500.0,0.0003589,18]
[424880130,1781231444000,-500.0,0.0003589,18]
[424880163,1781231444000,-1323.25,0.0003589,18]
[424880128,1781231444000,-4780.510235,0.0003589,7]
[424880118,1781231444000,-5500.81,0.0003589,18]
[424880116,1781231444000,-1613.81,0.0003589,18]
[424880114,1781231444000,-500.0,0.0003589,18]
[424880122,1781231444000,-4780.510235,0.0003589,7]
[424880120,1781231444000,-4780.510235,0.0003589,7]
[424880136,1781231444000,-4780.510235,0.0003589,7]
[424880138,1781231444000,-4780.510235,0.0003589,7]
[424880099,1781231444000,-523.72,0.0003589,18]
[424880140,1781231444000,-1411.07,0.0003589,18]
[424880142,1781231444000,-4780.510235,0.0003589,7]
[424880144,1781231444000,-4780.510235,0.0003589,7]
[424880156,1781231444000,-665.06,0.0003589,18]
[424880146,1781231444000,-4780.510235,0.0003589,7]
[424880134,1781231444000,-4780.510235,0.0003589,7]
[424880227,1781231444000,-500.0,0.00036164,18]
[424880094,1781231444000,-500.0,0.0003589,18]
[424880222,1781231444000,-500.0,0.00036164,18]
[424880291,1781231444000,-282.97795942,0.00036164,18]
[424880289,1781231444000,-1979.47,0.00036164,18]
[424880304,1781231444000,-500.0,0.00036164,18]
[424880300,1781231444000,-500.0,0.00036164,18]
[424880302,1781231444000,-500.0,0.00036164,2]
[424880306,1781231444000,-500.0,0.00036164,18]
[424880298,1781231444000,-500.0,0.00036164,18]
[424880296,1781231444000,-500.0,0.00036164,18]
[424880293,1781231444000,-500.0,0.00036164,18]
[424880294,1781231444000,-1407.18,0.00036164,18]
[424880311,1781231444000,-453.46613877,0.00036164,18]
[424880308,1781231444000,-2365.42,0.00036164,18]
[424880310,1781231444000,-500.0,0.00036164,18]
[424880313,1781231444000,-500.0,0.00036164,18]
[424880317,1781231444000,-500.0,0.00036164,18]
[424880315,1781231444000,-500.0,0.00036164,18]
[424880321,1781231444000,-500.0,0.00036164,18]
[424880319,1781231444000,-500.03,0.00036164,18]
[424880323,1781231444000,-500.0,0.00036164,18]
[424880334,1781231444000,-500.0,0.00036164,18]
[424880337,1781231444000,-813.82,0.00036164,6]
[424880326,1781231444000,-728.83,0.00036164,18]
[424880330,1781231444000,-500.0,0.00036164,18]
[424880325,1781231444000,-500.0,0.00036164,18]
[424880328,1781231444000,-500.0,0.00036164,18]
[424880332,1781231444000,-853.99,0.00036164,18]
[424880340,1781231444000,-571.19,0.00036164,18]
[424880339,1781231444000,-500.0,0.00036164,18]
[424880218,1781231444000,-574.58,0.00036164,18]
[424880287,1781231444000,-520.52284139,0.00036164,18]
[424880272,1781231444000,-500.0,0.00036164,18]
[424880150,1781231444000,-500.0,0.0003589,18]
[424880270,1781231444000,-500.0,0.00036164,18]
[424880268,1781231444000,-500.0,0.00036164,18]
[424880229,1781231444000,-500.0,0.00036164,18]
[424880231,1781231444000,-500.0,0.00036164,18]
[424880220,1781231444000,-500.0,0.00036164,18]
[424880234,1781231444000,-500.0,0.00036164,18]
[424880232,1781231444000,-500.0,0.00036164,18]
[424880236,1781231444000,-500.0,0.00036164,18]
[424880238,1781231444000,-749.48,0.00036164,18]
[424880251,1781231444000,-500.0,0.00036164,18]
[424880249,1781231444000,-500.0,0.00036164,18]
[424880256,1781231444000,-500.0,0.00036164,18]
[424880247,1781231444000,-500.0,0.00036164,18]
[424880242,1781231444000,-500.0,0.00036164,18]
[424880253,1781231444000,-500.0,0.00036164,18]
[424880240,1781231444000,-500.0,0.00036164,18]
[424880258,1781231444000,-500.0,0.00036164,18]
[424880246,1781231444000,-500.0,0.00036164,18]
[424880283,1781231444000,-500.0,0.00036164,18]
[424880282,1781231444000,-500.0,0.00036164,18]
[424880278,1781231444000,-966.05,0.00036164,18]
[424880266,1781231444000,-500.0,0.00036164,18]
[424880280,1781231444000,-500.0,0.00036164,18]
[424880276,1781231444000,-625.23,0.00036164,18]
[424880264,1781231444000,-500.0,0.00036164,18]
[424880260,1781231444000,-724.97,0.00036164,18]
[424880262,1781231444000,-500.0,0.00036164,18]
[424880244,1781231444000,-500.0,0.00036164,18]
[424880255,1781231444000,-500.0,0.00036164,18]
[424880274,1781231444000,-1220.31,0.00036164,18]
[424880285,1781231444000,-557.26,0.00036164,18]
[424880433,1781231445000,-201.75827291,0.00036164,18]
[424880435,1781231445000,-32026.49,0.00036164,18]
[424880425,1781231445000,-3143.69,0.00036164,18]
[424880429,1781231445000,-500.0,0.00036164,18]
[424880416,1781231445000,-618.55,0.00036164,18]
[424880398,1781231445000,-500.0,0.00036164,18]
[424880418,1781231445000,-500.0,0.00036164,18]
[424880409,1781231445000,-708.56,0.00036164,18]
[424880413,1781231445000,-574.80619102,0.00036164,18]
[424880411,1781231445000,-647.18,0.00036164,18]
[424880437,1781231445000,-567.02,0.00036164,18]
[424880420,1781231445000,-500.0,0.00036164,18]
[424880414,1781231445000,-1561.74,0.00036164,18]
[424880453,1781231445000,-500.0,0.00036164,18]
[424880431,1781231445000,-663.12,0.00036164,18]
[424880427,1781231445000,-500.0,0.00036164,18]
[424880424,1781231445000,-500.0,0.00036164,18]
[424880438,1781231445000,-500.0,0.00036164,18]
[424880440,1781231445000,-500.0,0.00036164,18]
[424880449,1781231445000,-500.0,0.00036164,2]
[424880444,1781231445000,-5444.48,0.00036164,18]
[424880448,1781231445000,-500.0,0.00036164,18]
[424880457,1781231445000,-500.0,0.00036164,18]
[424880446,1781231445000,-2203.78,0.00036164,18]
[424880451,1781231445000,-1138.31,0.00036164,18]
[424880442,1781231445000,-500.0,0.00036164,18]
[424880394,1781231445000,-500.0,0.00036164,18]
[424880455,1781231445000,-2485.13,0.00036164,18]
[424880422,1781231445000,-981.27,0.00036164,18]
[424880392,1781231445000,-866.16,0.00036164,18]
[424880379,1781231445000,-500.0,0.00036164,18]
[424880390,1781231445000,-1014.47,0.00036164,18]
[424880350,1781231445000,-500.0,0.00036164,18]
[424880344,1781231445000,-500.0,0.00036164,18]
[424880352,1781231445000,-470.63577724,0.00036164,18]
[424880354,1781231445000,-1287.24,0.00036164,18]
[424880357,1781231445000,-978.16,0.00036164,18]
[424880342,1781231445000,-881.39,0.00036164,18]
[424880346,1781231445000,-632.15,0.00036164,18]
[424880361,1781231445000,-500.0,0.00036164,18]
[424880348,1781231445000,-1363.04,0.00036164,18]
[424880359,1781231445000,-500.0,0.00036164,18]
[424880363,1781231445000,-500.0,0.00036164,18]
[424880374,1781231445000,-500.0,0.00036164,18]
[424880370,1781231445000,-500.0,0.00036164,18]
[424880372,1781231445000,-500.0,0.00036164,18]
[424880367,1781231445000,-500.0,0.00036164,18]
[424880381,1781231445000,-500.0,0.00036164,18]
[424880459,1781231445000,-500.0,0.00036164,18]
[424880365,1781231445000,-500.0,0.00036164,18]
[424880378,1781231445000,-500.0,0.00036164,18]
[424880376,1781231445000,-836.14,0.00036164,18]
[424880369,1781231445000,-560.22459671,0.00036164,18]
[424880383,1781231445000,-500.0,0.00036164,18]
[424880386,1781231445000,-500.0,0.00036164,18]
[424880399,1781231445000,-553.5,0.00036164,18]
[424880389,1781231445000,-555.84,0.00036164,18]
[424880405,1781231445000,-2993.01,0.00036164,18]
[424880403,1781231445000,-500.0,0.00036164,18]
[424880401,1781231445000,-716.83,0.00036164,18]
[424880407,1781231445000,-1134.1,0.00036164,18]
[424880396,1781231445000,-500.0,0.00036164,18]
[424880461,1781231445000,-4131.71,0.00036164,18]
[424880355,1781231445000,-500.0,0.00036164,18]
[424880465,1781231445000,-500.0,0.00036164,18]
[424880508,1781231445000,-187.0871,0.00036164,18]
[424880510,1781231445000,-500.0,0.00036164,18]
[424880507,1781231445000,-687.74,0.00036164,18]
[424880509,1781231445000,-500.0,0.00036164,18]
[424880513,1781231445000,-523.72,0.00036164,18]
[424880514,1781231445000,-500.0,0.00036164,18]
[424880524,1781231445000,-500.0,0.00036164,18]
[424880526,1781231445000,-1613.81,0.00036164,18]
[424880516,1781231445000,-500.0,0.00036164,2]
[424880515,1781231445000,-500.0,0.00036164,18]
[424880528,1781231445000,-5500.81,0.00036164,18]
[424880529,1781231445000,-3338.79,0.00036164,18]
[424880520,1781231445000,-644.78,0.00036164,18]
[424880519,1781231445000,-1342.78,0.00036164,18]
[424880506,1781231445000,-1194.23,0.00036164,18]
[424880531,1781231445000,-500.0,0.00036164,18]
[424880522,1781231445000,-500.0,0.00036164,18]
[424880549,1781231445000,-500.0,0.00036164,18]
[424880544,1781231445000,-500.0,0.00036164,18]
[424880535,1781231445000,-500.0,0.00036164,18]
[424880551,1781231445000,-500.0,0.00036164,18]
[424880540,1781231445000,-665.06,0.00036164,18]
[424880542,1781231445000,-6410.85,0.00036164,18]
[424880546,1781231445000,-1323.25,0.00036164,18]
[424880533,1781231445000,-1411.07,0.00036164,18]
[424880537,1781231445000,-500.0,0.00036164,18]
[424880554,1781231445000,-679.9506525,0.00036164,120]
[424880548,1781231445000,-500.0,0.00036164,18]
[424880538,1781231445000,-6094.36,0.00036164,18]
[424880463,1781231445000,-500.0,0.00036164,18]
[424880517,1781231445000,-1708.55,0.00036164,18]
[424880505,1781231445000,-4870.13,0.00036164,18]
[424880385,1781231445000,-500.0,0.00036164,18]
[424880503,1781231445000,-500.0,0.00036164,18]
[424880481,1781231445000,-500.0,0.00036164,18]
[424880504,1781231445000,-885.32,0.00036164,18]
[424880480,1781231445000,-500.0,0.00036164,18]
[424880471,1781231445000,-500.0,0.00036164,18]
[424880483,1781231445000,-1038.76,0.00036164,18]
[424880476,1781231445000,-728.55,0.00036164,2]
[424880478,1781231445000,-500.0,0.00036164,18]
[424880472,1781231445000,-500.0,0.00036164,18]
[424880468,1781231445000,-500.0,0.00036164,18]
[424880466,1781231445000,-1045.9,0.00036164,18]
[424880485,1781231445000,-500.0,0.00036164,18]
[424880486,1781231445000,-500.0,0.00036164,18]
[424880487,1781231445000,-2908.74,0.00036164,18]
[424880489,1781231445000,-2024.84,0.00036164,18]
[424880490,1781231445000,-500.0,0.00036164,18]
[424880474,1781231445000,-500.0,0.00036164,18]
[424880488,1781231445000,-500.0,0.00036164,18]
[424880502,1781231445000,-3868.0,0.00036164,18]
[424880499,1781231445000,-5137.44,0.00036164,18]
[424880512,1781231445000,-517.83,0.00036164,18]
[424880511,1781231445000,-2933.19,0.00036164,11]
[424880501,1781231445000,-500.0,0.00036164,18]
[424880500,1781231445000,-500.0,0.00036164,18]
[424880492,1781231445000,-728.51,0.00036164,18]
[424880496,1781231445000,-500.0,0.00036164,18]
[424880494,1781231445000,-500.0,0.00036164,18]
[424880497,1781231445000,-179.59741569,0.00036164,18]
[424880493,1781231445000,-500.0,0.00036164,18]
[424880498,1781231445000,-500.0,0.00036164,18]
[424880495,1781231445000,-2031.31,0.00036164,18]
[424880491,1781231445000,-500.0,0.00036164,18]
[424880634,1781231446000,-500.0,0.00036438,18]
[424880628,1781231446000,-500.0,0.00036438,18]
[424880632,1781231446000,-500.0,0.00036438,18]
[424880627,1781231446000,-500.0,0.00036438,18]
[424880623,1781231446000,-500.0,0.00036438,18]
[424880618,1781231446000,-500.0,0.00036438,18]
[424880625,1781231446000,-500.0,0.00036438,18]
[424880616,1781231446000,-299.66474735,0.00036438,18]
[424880621,1781231446000,-500.0,0.00036438,18]
[424880612,1781231446000,-500.0,0.00036438,18]
[424880635,1781231446000,-500.0,0.00036438,18]
[424880619,1781231446000,-749.48,0.00036438,18]
[424880639,1781231446000,-500.0,0.00036438,18]
[424880653,1781231446000,-1220.31,0.00036438,18]
[424880637,1781231446000,-500.0,0.00036438,18]
[424880641,1781231446000,-724.97,0.00036438,18]
[424880646,1781231446000,-500.0,0.00036438,18]
[424880650,1781231446000,-500.0,0.00036438,18]
[424880644,1781231446000,-500.0,0.00036438,18]
[424880643,1781231446000,-500.0,0.00036438,18]
[424880648,1781231446000,-500.0,0.00036438,18]
[424880662,1781231446000,-500.0,0.00036438,18]
[424880664,1781231446000,-557.26,0.00036438,18]
[424880651,1781231446000,-500.0,0.00036438,18]
[424880666,1781231446000,-1979.47,0.00036438,18]
[424880667,1781231446000,-500.0,0.00036438,18]
[424880607,1781231446000,-1111.26,0.00036438,18]
[424880630,1781231446000,-500.0,0.00036438,18]
[424880610,1781231446000,-500.0,0.00036438,18]
[424880584,1781231446000,-678.69,0.00036438,18]
[424880608,1781231446000,-500.0,0.00036438,18]
[424880567,1781231446000,-600.0,0.00036327,30]
[424880556,1781231446000,-151.78538106,0.00036164,120]
[424880565,1781231446000,-800.0,0.00036253,60]
[424880570,1781231446000,-688.3926,0.00036438,18]
[424880563,1781231446000,-322.63938072,0.00036221,2]
[424880568,1781231446000,-150.055444,0.000364,2]
[424880572,1781231446000,-734.2388,0.00036438,18]
[424880560,1781231446000,-151.32765505,0.00036217,18]
[424880558,1781231446000,-818.72629992,0.00036201,60]
[424880561,1781231446000,-371.85443914,0.0003622,2]
[424880575,1781231446000,-500.0,0.00036438,18]
[424880573,1781231446000,-500.0,0.00036438,18]
[424880579,1781231446000,-558.13,0.00036438,18]
[424880577,1781231446000,-500.0,0.00036438,18]
[424880581,1781231446000,-500.0,0.00036438,18]
[424880582,1781231446000,-732.82,0.00036438,18]
[424880669,1781231446000,-1407.18,0.00036438,18]
[424880589,1781231446000,-500.0,0.00036438,18]
[424880586,1781231446000,-500.0,0.00036438,18]
[424880587,1781231446000,-500.0,0.00036438,18]
[424880591,1781231446000,-500.0,0.00036438,18]
[424880593,1781231446000,-807.9,0.00036438,18]
[424880598,1781231446000,-500.0,0.00036438,18]
[424880595,1781231446000,-500.0,0.00036438,18]
[424880602,1781231446000,-494.09735977,0.00036438,18]
[424880600,1781231446000,-574.58,0.00036438,18]
[424880597,1781231446000,-500.0,0.00036438,18]
[424880603,1781231446000,-500.0,0.00036438,18]
[424880605,1781231446000,-500.0,0.00036438,18]
[424880614,1781231446000,-500.0,0.00036438,18]
[424880658,1781231446000,-544.90240698,0.00036438,18]
[424880686,1781231446000,-500.0,0.00036438,18]
[424880657,1781231446000,-966.05,0.00036438,18]
[424880736,1781231446000,-500.0,0.00036438,18]
[424880732,1781231446000,-500.0,0.00036438,18]
[424880728,1781231446000,-500.0,0.00036438,18]
[424880739,1781231446000,-500.0,0.00036438,18]
[424880743,1781231446000,-836.14,0.00036438,18]
[424880734,1781231446000,-500.0,0.00036438,18]
[424880741,1781231446000,-500.0,0.00036438,18]
[424880655,1781231446000,-625.23,0.00036438,18]
[424880747,1781231446000,-500.0,0.00036438,18]
[424880750,1781231446000,-500.0,0.00036438,18]
[424880748,1781231446000,-500.0,0.00036438,18]
[424880752,1781231446000,-500.0,0.00036438,18]
[424880764,1781231446000,-1014.47,0.00036438,18]
[424880762,1781231446000,-555.84,0.00036438,18]
[424880766,1781231446000,-866.16,0.00036438,18]
[424880754,1781231446000,-500.0,0.00036438,18]
[424880768,1781231446000,-500.0,0.00036438,18]
[424880780,1781231446000,-2993.01,0.00036438,18]
[424880774,1781231446000,-553.5,0.00036438,18]
[424880772,1781231446000,-500.0,0.00036438,18]
[424880770,1781231446000,-489.57614848,0.00036438,18]
[424880787,1781231446000,-1561.74,0.00036438,18]
[424880783,1781231446000,-708.56,0.00036438,18]
[424880776,1781231446000,-716.83,0.00036438,18]
[424880782,1781231446000,-1134.1,0.00036438,18]
[424880785,1781231446000,-647.18,0.00036438,18]
[424880778,1781231446000,-500.0,0.00036438,18]
[424880737,1781231446000,-500.0,0.00036438,18]
[424880730,1781231446000,-500.0,0.00036438,18]
[424880745,1781231446000,-500.0,0.00036438,18]
[424880724,1781231446000,-500.0,0.00036438,18]
[424880660,1781231446000,-500.0,0.00036438,18]
[424880675,1781231446000,-500.0,0.00036438,18]
[424880671,1781231446000,-500.0,0.00036438,18]
[424880673,1781231446000,-500.0,0.00036438,18]
[424880726,1781231446000,-978.16,0.00036438,18]
[424880688,1781231446000,-500.0,0.00036438,18]
[424880689,1781231446000,-500.0,0.00036438,18]
[424880682,1781231446000,-500.0,0.00036438,18]
[424880684,1781231446000,-500.0,0.00036438,18]
[424880695,1781231446000,-500.0,0.00036438,18]
[424880678,1781231446000,-500.0,0.00036438,18]
[424880680,1781231446000,-2365.42,0.00036438,18]
[424880691,1781231446000,-500.03,0.00036438,18]
[424880693,1781231446000,-500.0,0.00036438,18]
[424880676,1781231446000,-500.0,0.00036438,2]
[424880700,1781231446000,-500.0,0.00036438,18]
[424880697,1781231446000,-500.0,0.00036438,18]
[424880723,1781231446000,-1287.24,0.00036438,18]
[424880702,1781231446000,-500.0,0.00036438,18]
[424880720,1781231446000,-500.0,0.00036438,18]
[424880706,1781231446000,-500.0,0.00036438,18]
[424880711,1781231446000,-571.19,0.00036438,18]
[424880704,1781231446000,-853.99,0.00036438,18]
[424880709,1781231446000,-500.0,0.00036438,18]
[424880718,1781231446000,-1363.04,0.00036438,18]
[424880717,1781231446000,-632.15,0.00036438,18]
[424880715,1781231446000,-501.89928081,0.00036438,18]
[424880713,1781231446000,-881.39,0.00036438,18]
[424880698,1781231446000,-728.83,0.00036438,18]
[424880708,1781231446000,-813.82,0.00036438,6]
[424880999,1781231447000,-500.0,0.00036712,18]
[424880998,1781231447000,-500.0,0.00036712,18]
[424881001,1781231447000,-500.0,0.00036712,18]
[424881003,1781231447000,-500.0,0.00036712,18]
[424881011,1781231447000,-500.0,0.00036712,18]
[424881013,1781231447000,-513.8081714,0.00036712,18]
[424881015,1781231447000,-500.0,0.00036712,18]
[424881017,1781231447000,-724.97,0.00036712,18]
[424881031,1781231447000,-625.23,0.00036712,18]
[424881020,1781231447000,-500.0,0.00036712,18]
[424881035,1781231447000,-500.0,0.00036712,18]
[424881033,1781231447000,-966.05,0.00036712,18]
[424881018,1781231447000,-500.0,0.00036712,18]
[424881022,1781231447000,-486.5019369,0.00036712,18]
[424881028,1781231447000,-500.0,0.00036712,18]
[424881026,1781231447000,-500.0,0.00036712,18]
[424880996,1781231447000,-749.48,0.00036712,18]
[424881029,1781231447000,-1220.31,0.00036712,18]
[424881024,1781231447000,-500.0,0.00036712,18]
[424880994,1781231447000,-500.0,0.00036712,18]
[424881005,1781231447000,-500.0,0.00036712,18]
[424880842,1781231447000,-500.0,0.00036438,18]
[424880844,1781231447000,-500.0,0.00036438,18]
[424880846,1781231447000,-500.0,0.00036438,18]
[424880854,1781231447000,-500.0,0.00036438,18]
[424880850,1781231447000,-500.0,0.00036438,18]
[424880848,1781231447000,-728.55,0.00036438,2]
[424880857,1781231447000,-500.0,0.00036438,18]
[424880856,1781231447000,-1038.76,0.00036438,18]
[424880861,1781231447000,-2908.74,0.00036438,18]
[424880859,1781231447000,-500.0,0.00036438,18]
[424880863,1781231447000,-500.0,0.00036438,18]
[424880865,1781231447000,-2024.84,0.00036438,18]
[424880868,1781231447000,-728.51,0.00036438,18]
[424880867,1781231447000,-500.0,0.00036438,18]
[424880870,1781231447000,-500.0,0.00036438,18]
[424880872,1781231447000,-500.0,0.00036438,18]
[424880874,1781231447000,-500.0,0.00036438,18]
[424880880,1781231447000,-500.0,0.00036438,18]
[424880878,1781231447000,-500.0,0.00036438,18]
[424880876,1781231447000,-2031.31,0.00036438,18]
[424880886,1781231447000,-500.0,0.00036438,18]
[424880882,1781231447000,-5137.44,0.00036438,18]
[424880884,1781231447000,-500.0,0.00036438,18]
[424880888,1781231447000,-500.0,0.00036438,18]
[424880890,1781231447000,-3868.0,0.00036438,18]
[424880838,1781231447000,-1045.9,0.00036438,18]
[424880892,1781231447000,-885.32,0.00036438,18]
[424880833,1781231447000,-4131.71,0.00036438,18]
[424880835,1781231447000,-500.0,0.00036438,18]
[424881010,1781231447000,-500.0,0.00036712,18]
[424880791,1781231447000,-500.0,0.00036438,18]
[424880789,1781231447000,-618.55,0.00036438,18]
[424880797,1781231447000,-500.0,0.00036438,18]
[424880793,1781231447000,-500.0,0.00036438,18]
[424880795,1781231447000,-981.27,0.00036438,18]
[424880810,1781231447000,-500.0,0.00036438,18]
[424880808,1781231447000,-567.02,0.00036438,18]
[424880801,1781231447000,-500.0,0.00036438,18]
[424880803,1781231447000,-500.0,0.00036438,18]
[424880799,1781231447000,-3143.69,0.00036438,18]
[424880806,1781231447000,-32026.49,0.00036438,18]
[424880805,1781231447000,-663.12,0.00036438,18]
[424880812,1781231447000,-500.0,0.00036438,18]
[424880816,1781231447000,-5444.48,0.00036438,18]
[424880814,1781231447000,-500.0,0.00036438,18]
[424880818,1781231447000,-500.0,0.00036438,18]
[424880825,1781231447000,-500.0,0.00036438,18]
[424880824,1781231447000,-1138.31,0.00036438,18]
[424880820,1781231447000,-2203.78,0.00036438,18]
[424880822,1781231447000,-500.0,0.00036438,2]
[424880827,1781231447000,-2485.13,0.00036438,18]